[Event "17th Aeroflot Open-A 2019"]
[Site "Moscow"]
[Date "2019.02.25"]
[Round "7.29"]
[White "Svane, Rasmus"]
[Black "Stupak, Kirill"]
[Result "1/2-1/2"]
[ECO "C09"]
[WhiteElo "2599"]
[BlackElo "2537"]
[Annotator "RC"]
[PlyCount "36"]
[EventDate "2019.02.19"]
[EventCountry "RUS"]
[SourceTitle "playchess.com"]
[Source "ChessBase"]
[SourceQuality "1"]
[TimeControl "40/5400+30:1800+30"]

1. e4 {[%emt 0:00:00]} e6 {[%emt 0:06:12]} 2. d4 {[%emt 0:00:00]} d5 {[%emt 0:00:11]} 3. Nd2 {[%emt 0:00:00]} c5 {[%emt 0:06:21]} 4. Ngf3 {[%emt 0:00:00]} Nc6 {[%emt 0:02:11]} 5. exd5 {[%emt 0:00:09]} exd5 {[%emt 0:00:26]} 6. Bb5 {[%emt 0:00:07]} Bd6 {[%emt 0:06:20]} 7. dxc5 {[%emt 0:00:06]} Bxc5 {[%emt 0:00:03]} 8. O-O {[%emt 0:00:11]} Nge7 {[%emt 0:00:01]} 9. Nb3 {[%emt 0:00:28]} Bb6 {[%emt 0:00:02]} 10. Re1 {[%emt 0:00:58]} O-O {[%emt 0:00:38]} 11. Be3 {[%emt 0:00:10]} Bxe3 {[%emt 0:06:12]} 12. Rxe3 {[%emt 0:00:02]} Bg4 {[%emt 0:00:13]} 13. h3 {[%emt 0:30:31]} Bh5 {[%emt 0:00:49]} 14. Qd2 {[%emt 0:00:14]} Bxf3 {[%emt 0:12:18]} 15. Rxf3 {[%emt 0:00:14]} Qb6 {[%emt 0:00:01]} 16. Bxc6 {[%emt 0:21:36]} bxc6 {[%emt 0:00:18]} 17. Re1 {[%emt 0:12:16]} Ng6 {[%emt 0:07:45]} 18. Qe3 {[%emt 0:05:05]} f6 {[%emt 0:08:38]} 1/2-1/2

[Event "17th Aeroflot Open-A 2019"]
[Site "Moscow"]
[Date "2019.02.26"]
[Round "8.2"]
[White "Martirosyan, Haik M."]
[Black "Sarana, Alexey"]
[Result "1/2-1/2"]
[ECO "B51"]
[WhiteElo "2616"]
[BlackElo "2630"]
[Annotator "RC"]
[PlyCount "62"]
[EventDate "2019.02.19"]
[EventCountry "RUS"]
[SourceTitle "playchess.com"]
[Source "ChessBase"]
[SourceQuality "1"]
[TimeControl "40/5400+30:1800+30"]

1. e4 {[%emt 0:00:00]} c5 {[%emt 0:00:00]} 2. Nf3 {[%emt 0:00:00]} d6 {[%emt 0:00:00]} 3. Bb5+ {[%emt 0:00:00]} Nd7 {[%emt 0:00:00]} 4. c3 {[%emt 0:00:17]} Ngf6 {[%emt 0:00:11]} 5. Bd3 {[%emt 0:00:42]} e6 {[%emt 0:01:24]} 6. Bc2 {[%emt 0:00:40]} b5 {[%emt 0:10:26]} 7. O-O {[%emt 0:07:26]} Bb7 {[%emt 0:00:24]} 8. Re1 {[%emt 0:00:51]} c4 {[%emt 0:02:05]} 9. d4 {[%emt 0:08:22]} cxd3 {[%emt 0:01:41]} 10. Qxd3 {[%emt 0:01:24]} a6 {[%emt 0:00:15]} 11. Qe2 {[%emt 0:01:14]} Be7 {[%emt 0:00:33]} 12. Nbd2 {[%emt 0:05:23]} O-O {[%emt 0:03:58]} 13. Nb3 {[%emt 0:01:55]} Qc7 {[%emt 0:06:16]} 14. a4 {[%emt 0:06:11]} Rfb8 {[%emt 0:06:36]} 15. Bg5 {[%emt 0:07:23]} h6 {[%emt 0:05:23]} 16. Bh4 {[%emt 0:00:12]} e5 {[%emt 0:02:40]} 17. axb5 {[%emt 0:15:59]} axb5 {[%emt 0:00:02]} 18. Bd3 {[%emt 0:00:35]} Ra4 {[%emt 0:07:57]} 19. Nbd2 {[%emt 0:05:03]} Bc6 {[%emt 0:00:45]} 20. b4 {[%emt 0:01:49]} Rxa1 {[%emt 0:05:09]} 21. Rxa1 {[%emt 0:00:02]} d5 {[%emt 0:02:46]} 22. Rd1 {[%emt 0:13:14]} dxe4 {[%emt 0:03:11]} 23. Nxe4 {[%emt 0:00:08]} Bxe4 {[%emt 0:02:54]} 24. Bxe4 {[%emt 0:00:07]} Nxe4 {[%emt 0:00:04]} 25. Qxe4 {[%emt 0:00:51]} Bxh4 {[%emt 0:00:05]} 26. Nxh4 {[%emt 0:00:28]} Nf6 {[%emt 0:02:37]} 27. Qe3 {[%emt 0:04:14]} Rc8 {[%emt 0:07:37]} 28. Nf5 {[%emt 0:00:57]} Kh7 {[%emt 0:00:49]} 29. Qg3 {[%emt 0:09:52]} g6 {[%emt 0:01:06]} 30. Qh4 {[%emt 0:00:46]} Nh5 {[%emt 0:01:28]} 31. Ne7 {[%emt 0:02:59]} Qc4 {[%emt 0:15:27]} 1/2-1/2

[Event "17th Aeroflot Open-A 2019"]
[Site "Moscow"]
[Date "2019.02.26"]
[Round "8.3"]
[White "Tabatabaei, M.amin"]
[Black "Petrosian, Tigran L."]
[Result "1/2-1/2"]
[ECO "D37"]
[WhiteElo "2590"]
[BlackElo "2595"]
[Annotator "RC"]
[PlyCount "82"]
[EventDate "2019.02.19"]
[EventCountry "RUS"]
[SourceTitle "playchess.com"]
[Source "ChessBase"]
[SourceQuality "1"]
[TimeControl "40/5400+30:1800+30"]

1. d4 {[%emt 0:02:15]} d5 {[%emt 0:02:04]} 2. c4 {[%emt 0:00:09]} e6 {[%emt 0:00:20]} 3. Nc3 {[%emt 0:00:10]} Be7 {[%emt 0:00:07]} 4. Nf3 {[%emt 0:00:08]} Nf6 {[%emt 0:00:07]} 5. Bf4 {[%emt 0:00:04]} O-O {[%emt 0:00:13]} 6. e3 {[%emt 0:00:04]} Nbd7 {[%emt 0:17:13]} 7. a3 {[%emt 0:00:36]} dxc4 {[%emt 0:10:40]} 8. Bxc4 {[%emt 0:00:22]} a6 {[%emt 0:05:13]} 9. b4 {[%emt 0:00:31]} a5 {[%emt 0:21:53]} 10. b5 {[%emt 0:09:28]} c5 {[%emt 0:02:15]} 11. bxc6 {[%emt 0:14:08]} bxc6 {[%emt 0:00:04]} 12. O-O {[%emt 0:00:20]} Nd5 {[%emt 0:06:27]} 13. Ne4 {[%emt 0:05:34]} Nxf4 {[%emt 0:03:16]} 14. exf4 {[%emt 0:00:06]} c5 {[%emt 0:00:15]} 15. dxc5 {[%emt 0:10:57]} Nxc5 {[%emt 0:03:24]} 16. Qc2 {[%emt 0:00:32]} Nxe4 {[%emt 0:00:59]} 17. Qxe4 {[%emt 0:00:07]} Ba6 {[%emt 0:00:10]} 18. Rfd1 {[%emt 0:01:28]} Qc8 {[%emt 0:00:26]} 19. Bxa6 {[%emt 0:24:26]} Qxa6 {[%emt 0:03:12]} 20. a4 {[%emt 0:00:13]} Bf6 {[%emt 0:00:17]} 21. Rab1 {[%emt 0:02:22]} Rfc8 {[%emt 0:01:55]} 22. Ne5 {[%emt 0:06:23]} Bxe5 {[%emt 0:00:56]} 23. Qxe5 {[%emt 0:00:06]} Qc4 {[%emt 0:00:42]} 24. Qd4 {[%emt 0:01:19]} Qxd4 {[%emt 0:00:53]} 25. Rxd4 {[%emt 0:00:02]} Rab8 {[%emt 0:00:20]} 26. Rxb8 {[%emt 0:00:37]} Rxb8 {[%emt 0:00:01]} 27. Kf1 {[%emt 0:00:23]} g6 {[%emt 0:01:13]} 28. Rc4 {[%emt 0:00:31]} Rb1+ {[%emt 0:00:07]} 29. Ke2 {[%emt 0:00:06]} Ra1 {[%emt 0:00:16]} 30. g3 {[%emt 0:01:10]} Ra3 {[%emt 0:00:08]} 31. h4 {[%emt 0:00:21]} h5 {[%emt 0:00:06]} 32. Rd4 {[%emt 0:00:32]} Kf8 {[%emt 0:00:06]} 33. Rc4 {[%emt 0:00:37]} Ke7 {[%emt 0:00:03]} 34. Rc7+ {[%emt 0:01:08]} Ke8 {[%emt 0:00:15]} 35. Rc4 {[%emt 0:00:06]} Kd7 {[%emt 0:00:04]} 36. Rd4+ {[%emt 0:00:30]} Ke7 {[%emt 0:02:22]} 37. Kd2 {[%emt 0:01:22]} Kf6 {[%emt 0:01:09]} 38. Ke2 {[%emt 0:02:42]} Kf5 {[%emt 0:00:22]} 39. Kf1 {[%emt 0:00:11]} e5 {[%emt 0:08:58]} 40. Rd5 {[%emt 0:00:00]} Rxa4 {[%emt 0:00:00]} 41. Rxe5+ {[%emt 0:05:39]} Kf6 {[%emt 0:07:08]} 1/2-1/2

[Event "17th Aeroflot Open-A 2019"]
[Site "Moscow"]
[Date "2019.02.26"]
[Round "8.17"]
[White "Sadhwani, Raunak"]
[Black "Grachev, Boris"]
[Result "1/2-1/2"]
[ECO "B46"]
[WhiteElo "2448"]
[BlackElo "2626"]
[Annotator "ChessBase"]
[PlyCount "26"]
[EventDate "2019.02.19"]
[EventCountry "RUS"]
[SourceTitle "playchess.com"]
[Source "ChessBase"]
[SourceQuality "1"]
[TimeControl "40/5400+30:1800+30"]

1. e4 {[%emt 0:00:00]} c5 {[%emt 0:00:00]} 2. Nf3 {[%emt 0:00:00]} e6 {[%emt 0:00:06]} 3. d4 {[%emt 0:00:00]} cxd4 {[%emt 0:00:03]} 4. Nxd4 {[%emt 0:00:00]} Nc6 {[%emt 0:00:11]} 5. Nc3 {[%emt 0:00:00]} a6 {[%emt 0:00:06]} 6. Nxc6 {[%emt 0:00:00]} bxc6 {[%emt 0:00:04]} 7. Bd3 {[%emt 0:00:06]} d5 {[%emt 0:00:24]} 8. O-O {[%emt 0:00:06]} Nf6 {[%emt 0:00:04]} 9. Qf3 {[%emt 0:00:11]} Be7 {[%emt 0:00:27]} 10. Qg3 {[%emt 0:00:09]} Nh5 {[%emt 0:02:01]} 11. Qf3 {[%emt 0:00:06]} Nf6 {[%emt 0:00:38]} 12. Qg3 {[%emt 0:00:05]} Nh5 {[%emt 0:01:28]} 13. Qf3 {[%emt 0:00:05]} Nf6 {[%emt 0:00:03]} 1/2-1/2

[Event "17th Aeroflot Open-A 2019"]
[Site "Moscow"]
[Date "2019.02.26"]
[Round "8.21"]
[White "Xu, Yi"]
[Black "Narayanan.S.L"]
[Result "1/2-1/2"]
[ECO "C47"]
[WhiteElo "2520"]
[BlackElo "2593"]
[Annotator "ChessBase"]
[PlyCount "23"]
[EventDate "2019.02.19"]
[EventCountry "RUS"]
[SourceTitle "playchess.com"]
[Source "ChessBase"]
[SourceQuality "1"]
[TimeControl "40/5400+30:1800+30"]

1. e4 {[%emt 0:00:00]} e5 {[%emt 0:00:00]} 2. Nf3 {[%emt 0:00:00]} Nc6 {[%emt 0:00:00]} 3. Nc3 {[%emt 0:00:00]} Nf6 {[%emt 0:00:00]} 4. d4 {[%emt 0:00:00]} exd4 {[%emt 0:00:27]} 5. Nxd4 {[%emt 0:00:00]} Bb4 {[%emt 0:00:49]} 6. Nxc6 {[%emt 0:00:00]} bxc6 {[%emt 0:00:05]} 7. Bd3 {[%emt 0:00:00]} d5 {[%emt 0:00:18]} 8. exd5 {[%emt 0:00:00]} cxd5 {[%emt 0:00:07]} 9. O-O {[%emt 0:00:03]} O-O {[%emt 0:00:14]} 10. Bg5 {[%emt 0:00:04]} c6 {[%emt 0:01:39]} 11. Qf3 {[%emt 0:00:08]} Be7 {[%emt 0:01:58]} 12. Rae1 {[%emt 0:00:21]} 1/2-1/2

[Event "17th Aeroflot Open-A 2019"]
[Site "Moscow"]
[Date "2019.02.26"]
[Round "8.38"]
[White "Ghaem Maghami, Ehsan"]
[Black "Harika, Dronavalli"]
[Result "1/2-1/2"]
[ECO "E04"]
[WhiteElo "2540"]
[BlackElo "2471"]
[Annotator "ChessBase"]
[PlyCount "33"]
[EventDate "2019.02.19"]
[EventCountry "RUS"]
[SourceTitle "playchess.com"]
[Source "ChessBase"]
[SourceQuality "1"]
[TimeControl "40/5400+30:1800+30"]

1. c4 e6 {[%emt 0:00:00]} 2. Nf3 {[%emt 0:06:23]} d5 {[%emt 0:00:23]} 3. d4 {[%emt 0:01:12]} Nf6 {[%emt 0:00:13]} 4. g3 {[%emt 0:01:21]} dxc4 {[%emt 0:00:47]} 5. Bg2 {[%emt 0:01:49]} Bb4+ {[%emt 0:00:26]} 6. Bd2 {[%emt 0:00:12]} a5 {[%emt 0:00:16]} 7. Qc2 {[%emt 0:00:13]} Bxd2+ {[%emt 0:00:19]} 8. Qxd2 {[%emt 0:00:25]} c6 {[%emt 0:00:38]} 9. a4 {[%emt 0:00:59]} Ne4 {[%emt 0:00:16]} 10. Qf4 {[%emt 0:18:49]} Qb6 {[%emt 0:01:20]} 11. Ne5 {[%emt 0:18:06]} f6 {[%emt 0:14:07]} 12. Nxc4 {[%emt 0:24:50]} Qb4+ {[%emt 0:00:27]} 13. Nbd2 {[%emt 0:02:42]} Nxd2 {[%emt 0:00:15]} 14. Nxd2 {[%emt 0:00:07]} Nd7 {[%emt 0:03:55]} 15. Qe3 {[%emt 0:01:05]} Nb6 {[%emt 0:03:30]} 16. Qc3 {[%emt 0:03:44]} Nd5 {[%emt 0:04:10]} 17. Qxb4 {[%emt 0:06:41]} 1/2-1/2

[Event "17th Aeroflot Open-A 2019"]
[Site "Moscow"]
[Date "2019.02.26"]
[Round "8.39"]
[White "Prithu Gupta"]
[Black "Debashis, Das"]
[Result "1/2-1/2"]
[ECO "A13"]
[WhiteElo "2470"]
[BlackElo "2532"]
[Annotator "ChessBase"]
[PlyCount "29"]
[EventDate "2019.02.19"]
[EventCountry "RUS"]
[SourceTitle "playchess.com"]
[Source "ChessBase"]
[SourceQuality "1"]
[TimeControl "40/5400+30:1800+30"]

1. c4 {[%emt 0:00:00]} e6 {[%emt 0:00:00]} 2. Nc3 {[%emt 0:00:00]} d5 {[%emt 0:00:00]} 3. cxd5 {[%emt 0:00:12]} exd5 {[%emt 0:00:02]} 4. d4 {[%emt 0:00:05]} c6 {[%emt 0:00:28]} 5. Bf4 {[%emt 0:00:50]} Bd6 {[%emt 0:00:14]} 6. Bg3 {[%emt 0:01:43]} Ne7 {[%emt 0:00:25]} 7. e3 {[%emt 0:00:10]} O-O {[%emt 0:01:03]} 8. Bd3 {[%emt 0:00:06]} Bf5 {[%emt 0:00:37]} 9. Nge2 {[%emt 0:03:17]} Bxd3 {[%emt 0:01:09]} 10. Qxd3 {[%emt 0:00:17]} Na6 {[%emt 0:01:07]} 11. O-O {[%emt 0:05:12]} Nc7 {[%emt 0:01:15]} 12. Rab1 {[%emt 0:02:00]} a5 {[%emt 0:02:43]} 13. Na4 {[%emt 0:01:19]} Ne6 {[%emt 0:06:50]} 14. Rfc1 {[%emt 0:01:10]} Nc8 {[%emt 0:01:24]} 15. Qc2 {[%emt 0:13:30]} 1/2-1/2

[Event "17th Aeroflot Open-A 2019"]
[Site "Moscow"]
[Date "2019.02.27"]
[Round "9.2"]
[White "Petrosian, Tigran L."]
[Black "Martirosyan, Haik M."]
[Result "0-1"]
[ECO "C50"]
[WhiteElo "2595"]
[BlackElo "2616"]
[Annotator "ChessBase"]
[PlyCount "92"]
[EventDate "2019.02.19"]
[EventCountry "RUS"]
[SourceTitle "playchess.com"]
[Source "ChessBase"]
[SourceQuality "1"]
[TimeControl "40/5400+30:1800+30"]

1. e4 {[%emt 0:00:00]} e5 {[%emt 0:01:51]} 2. Nf3 {[%emt 0:00:00]} Nc6 {[%emt 0:00:09]} 3. Bc4 {[%emt 0:00:38]} Bc5 {[%emt 0:00:18]} 4. d3 {[%emt 0:03:39]} Nf6 {[%emt 0:00:50]} 5. Bg5 {[%emt 0:00:22]} h6 {[%emt 0:00:48]} 6. Bh4 {[%emt 0:00:07]} a6 {[%emt 0:01:14]} 7. a4 {[%emt 0:03:44]} d6 {[%emt 0:00:28]} 8. c3 {[%emt 0:00:29]} Ba7 {[%emt 0:00:34]} 9. O-O {[%emt 0:06:47]} Qe7 {[%emt 0:00:42]} 10. Nbd2 {[%emt 0:05:15]} g5 {[%emt 0:00:33]} 11. Bg3 {[%emt 0:04:05]} Nd7 {[%emt 0:00:15]} 12. Bd5 {[%emt 0:27:00]} h5 {[%emt 0:15:31]} 13. h4 {[%emt 0:01:45]} g4 {[%emt 0:01:00]} 14. Ne1 {[%emt 0:05:46]} Nf8 {[%emt 0:02:28]} 15. d4 {[%emt 0:01:57]} Ng6 {[%emt 0:07:22]} 16. Nc4 {[%emt 0:07:12]} exd4 {[%emt 0:21:20]} 17. Nd3 {[%emt 0:24:41]} Nce5 {[%emt 0:20:08]} 18. cxd4 {[%emt 0:02:00]} Nxc4 {[%emt 0:04:16]} 19. Bxc4 {[%emt 0:00:15]} Bxd4 {[%emt 0:02:59]} 20. Nf4 {[%emt 0:03:45]} c5 {[%emt 0:02:42]} 21. Nxg6 {[%emt 0:00:28]} fxg6 {[%emt 0:00:08]} 22. b4 {[%emt 0:00:33]} Be6 {[%emt 0:04:09]} 23. bxc5 {[%emt 0:00:29]} dxc5 {[%emt 0:00:37]} 24. Bxe6 {[%emt 0:00:32]} Qxe6 {[%emt 0:00:17]} 25. Rb1 {[%emt 0:00:05]} b6 {[%emt 0:05:46]} 26. Qb3 {[%emt 0:00:54]} c4 {[%emt 0:00:21]} 27. Qb4 {[%emt 0:00:29]} Bc5 {[%emt 0:00:43]} 28. Qc3 {[%emt 0:00:22]} O-O {[%emt 0:00:33]} 29. Rfc1 {[%emt 0:00:06]} Rad8 {[%emt 0:00:43]} 30. Rc2 {[%emt 0:01:04]} Rd4 {[%emt 0:02:26]} 31. Re1 {[%emt 0:00:25]} b5 {[%emt 0:01:05]} 32. axb5 {[%emt 0:00:04]} axb5 {[%emt 0:00:04]} 33. Qa5 {[%emt 0:00:06]} Qc6 {[%emt 0:01:41]} 34. Rb1 {[%emt 0:01:24]} b4 {[%emt 0:01:07]} 35. Rxb4 {[%emt 0:00:24]} Bxb4 {[%emt 0:00:59]} 36. Qxb4 {[%emt 0:00:02]} Qxe4 {[%emt 0:00:19]} 37. Ra2 {[%emt 0:01:05]} Qe6 {[%emt 0:01:28]} 38. Kh2 {[%emt 0:00:29]} Rd7 {[%emt 0:00:32]} 39. Rc2 {[%emt 0:00:31]} Rc8 {[%emt 0:00:18]} 40. Qc3 {[%emt 0:00:00]} Rd3 {[%emt 0:00:00]} 41. Qa5 {[%emt 0:09:45]} Rd1 {[%emt 0:08:58]} 42. Qg5 {[%emt 0:03:20]} c3 {[%emt 0:04:54]} 43. Qh6 {[%emt 0:02:32]} Qf5 {[%emt 0:02:43]} 44. Re2 {[%emt 0:00:55]} c2 {[%emt 0:01:12]} 45. Be5 {[%emt 0:03:31]} Rh1+ {[%emt 0:00:21]} 46. Kg3 {[%emt 0:00:04]} Rh3+ {[%emt 0:00:09]} 0-1

[Event "17th Aeroflot Open-A 2019"]
[Site "Moscow"]
[Date "2019.02.27"]
[Round "9.3"]
[White "Kulaots, Kaido"]
[Black "Khismatullin, Denis"]
[Result "1-0"]
[ECO "C41"]
[WhiteElo "2542"]
[BlackElo "2621"]
[Annotator "ChessBase"]
[PlyCount "151"]
[EventDate "2019.02.19"]
[EventCountry "RUS"]
[SourceTitle "playchess.com"]
[Source "ChessBase"]
[SourceQuality "1"]
[TimeControl "40/5400+30:1800+30"]

1. e4 {[%emt 0:00:00]} d6 {[%emt 0:00:00]} 2. d4 {[%emt 0:00:00]} Nf6 {[%emt 0:00:00]} 3. Nc3 {[%emt 0:00:23]} e5 {[%emt 0:00:00]} 4. Nf3 {[%emt 0:02:06]} Nbd7 {[%emt 0:00:09]} 5. Bc4 {[%emt 0:00:16]} Be7 {[%emt 0:00:04]} 6. O-O {[%emt 0:00:25]} O-O {[%emt 0:00:09]} 7. Re1 {[%emt 0:00:54]} c6 {[%emt 0:03:32]} 8. a4 {[%emt 0:01:16]} h6 {[%emt 0:00:05]} 9. h3 {[%emt 0:04:11]} Re8 {[%emt 0:02:02]} 10. Be3 {[%emt 0:03:00]} Qc7 {[%emt 0:04:59]} 11. Ba2 {[%emt 0:03:59]} Nf8 {[%emt 0:10:13]} 12. Nh4 {[%emt 0:09:29]} exd4 {[%emt 0:20:45]} 13. Bxd4 {[%emt 0:00:58]} N6h7 {[%emt 0:04:27]} 14. Nf3 {[%emt 0:09:15]} Be6 {[%emt 0:02:11]} 15. Bxe6 {[%emt 0:01:05]} Nxe6 {[%emt 0:00:57]} 16. Be3 {[%emt 0:00:42]} Bf6 {[%emt 0:01:11]} 17. Qd2 {[%emt 0:05:51]} Nhg5 {[%emt 0:04:44]} 18. Nxg5 {[%emt 0:04:35]} hxg5 {[%emt 0:00:32]} 19. a5 {[%emt 0:09:45]} Qe7 {[%emt 0:06:57]} 20. Rad1 {[%emt 0:04:08]} Be5 {[%emt 0:04:25]} 21. b3 {[%emt 0:01:28]} Qf6 {[%emt 0:06:02]} 22. Ne2 {[%emt 0:01:39]} c5 {[%emt 0:01:16]} 23. Qd3 {[%emt 0:07:40]} Rad8 {[%emt 0:02:50]} 24. Qc4 {[%emt 0:00:39]} Nf4 {[%emt 0:07:33]} 25. Bxf4 {[%emt 0:05:07]} gxf4 {[%emt 0:00:05]} 26. Rd3 {[%emt 0:00:12]} d5 {[%emt 0:06:19]} 27. exd5 {[%emt 0:04:12]} Bc7 {[%emt 0:01:07]} 28. a6 {[%emt 0:15:45]} Rxe2 {[%emt 0:07:11]} 29. Rxe2 {[%emt 0:00:05]} Qa1+ {[%emt 0:00:03]} 30. Kh2 {[%emt 0:00:05]} f3+ {[%emt 0:01:17]} 31. d6 {[%emt 0:00:13]} fxe2 {[%emt 0:01:53]} 32. dxc7 {[%emt 0:00:09]} Qe5+ {[%emt 0:01:18]} 33. f4 {[%emt 0:03:15]} Qxc7 {[%emt 0:01:07]} 34. Rxd8+ {[%emt 0:00:13]} Qxd8 {[%emt 0:00:03]} 35. Qxe2 {[%emt 0:00:10]} bxa6 {[%emt 0:01:09]} 36. Qxa6 {[%emt 0:00:21]} Qd4 {[%emt 0:00:41]} 37. Qc8+ {[%emt 0:01:26]} Kh7 {[%emt 0:00:01]} 38. Qf5+ {[%emt 0:00:08]} Kg8 {[%emt 0:00:59]} 39. Qc8+ {[%emt 0:00:18]} Kh7 {[%emt 0:00:05]} 40. Qf5+ {[%emt 0:00:00]} Kg8 {[%emt 0:00:00]} 41. Qe5 {[%emt 0:01:46]} Qf2 {[%emt 0:07:56]} 42. Qe8+ {[%emt 0:02:27]} Kh7 {[%emt 0:00:04]} 43. Qxf7 {[%emt 0:00:16]} Qxc2 {[%emt 0:00:04]} 44. Qxa7 {[%emt 0:01:24]} Qxb3 {[%emt 0:05:23]} 45. Qxc5 {[%emt 0:00:06]} Qb8 {[%emt 0:00:19]} 46. Kg3 {[%emt 0:01:00]} Qd8 {[%emt 0:02:15]} 47. Qh5+ {[%emt 0:01:00]} Kg8 {[%emt 0:00:02]} 48. Qe5 {[%emt 0:00:32]} Kh7 {[%emt 0:00:18]} 49. Qf5+ {[%emt 0:03:14]} Kg8 {[%emt 0:02:47]} 50. Kg4 {[%emt 0:00:43]} Qd1+ {[%emt 0:01:45]} 51. Kg5 {[%emt 0:01:08]} Qd8+ {[%emt 0:06:41]} 52. Kh5 {[%emt 0:00:23]} Qe8+ {[%emt 0:00:17]} 53. Qg6 {[%emt 0:04:02]} Qe2+ {[%emt 0:00:34]} 54. Kh4 {[%emt 0:02:50]} Qe1+ {[%emt 0:01:41]} 55. g3 {[%emt 0:00:32]} Qe7+ {[%emt 0:01:50]} 56. Qg5 {[%emt 0:00:23]} Qe4 {[%emt 0:01:26]} 57. Qd8+ {[%emt 0:03:39]} Kh7 {[%emt 0:00:02]} 58. Qd6 {[%emt 0:01:12]} Qe1 {[%emt 0:02:25]} 59. f5 {[%emt 0:01:35]} Qf2 {[%emt 0:02:11]} 60. Qe6 {[%emt 0:03:29]} Kh8 {[%emt 0:01:19]} 61. Kg4 {[%emt 0:00:46]} Kh7 {[%emt 0:00:42]} 62. h4 {[%emt 0:00:25]} Kh8 {[%emt 0:00:52]} 63. Qe8+ {[%emt 0:00:54]} Kh7 {[%emt 0:00:01]} 64. Qg6+ {[%emt 0:00:07]} Kh8 {[%emt 0:00:08]} 65. Kh5 {[%emt 0:00:29]} Qe2+ {[%emt 0:01:48]} 66. g4 {[%emt 0:00:09]} Qf3 {[%emt 0:00:31]} 67. Qe6 {[%emt 0:02:59]} Kh7 {[%emt 0:00:16]} 68. Kg5 {[%emt 0:00:10]} Qc3 {[%emt 0:01:01]} 69. Kh5 {[%emt 0:02:16]} Qf3 {[%emt 0:00:23]} 70. Qe5 {[%emt 0:02:51]} Qd3 {[%emt 0:00:38]} 71. Qe8 {[%emt 0:03:38]} Qf3 {[%emt 0:00:15]} 72. Qg6+ {[%emt 0:00:24]} Kh8 {[%emt 0:00:16]} 73. f6 {[%emt 0:01:02]} gxf6 {[%emt 0:01:11]} 74. Qf7 {[%emt 0:02:16]} Qf4 {[%emt 0:00:40]} 75. Qe8+ {[%emt 0:00:09]} Kg7 {[%emt 0:00:27]} 76. Qg6+ {[%emt 0:00:09]} 1-0

[Event "17th Aeroflot Open-A 2019"]
[Site "Moscow"]
[Date "2019.02.27"]
[Round "9.4"]
[White "Sarana, Alexey"]
[Black "Chigaev, Maksim"]
[Result "1/2-1/2"]
[ECO "E65"]
[WhiteElo "2630"]
[BlackElo "2613"]
[Annotator "ChessBase"]
[PlyCount "159"]
[EventDate "2019.02.19"]
[EventCountry "RUS"]
[SourceTitle "playchess.com"]
[Source "ChessBase"]
[SourceQuality "1"]
[TimeControl "40/5400+30:1800+30"]

1. d4 {[%emt 0:00:00]} Nf6 {[%emt 0:00:00]} 2. c4 {[%emt 0:00:00]} d6 {[%emt 0:00:00]} 3. Nc3 {[%emt 0:00:00]} g6 {[%emt 0:00:00]} 4. Nf3 {[%emt 0:00:05]} Bg7 {[%emt 0:00:00]} 5. g3 {[%emt 0:00:03]} O-O {[%emt 0:00:00]} 6. Bg2 {[%emt 0:00:03]} c5 {[%emt 0:00:03]} 7. O-O {[%emt 0:00:07]} Nc6 {[%emt 0:00:04]} 8. dxc5 {[%emt 0:00:36]} dxc5 {[%emt 0:00:05]} 9. Be3 {[%emt 0:00:04]} b6 {[%emt 0:00:06]} 10. Qa4 {[%emt 0:10:08]} Bd7 {[%emt 0:02:57]} 11. Qc2 {[%emt 0:08:53]} Rc8 {[%emt 0:18:54]} 12. Rad1 {[%emt 0:01:28]} Ng4 {[%emt 0:02:13]} 13. Bc1 {[%emt 0:08:50]} Nd4 {[%emt 0:00:47]} 14. Qd2 {[%emt 0:01:55]} Bc6 {[%emt 0:08:06]} 15. Qg5 {[%emt 0:04:01]} h5 {[%emt 0:09:15]} 16. Nxd4 {[%emt 0:05:55]} cxd4 {[%emt 0:00:03]} 17. Nd5 {[%emt 0:01:39]} Nf6 {[%emt 0:01:54]} 18. Rxd4 {[%emt 0:08:14]} Bxd5 {[%emt 0:07:37]} 19. cxd5 {[%emt 0:01:01]} Nh7 {[%emt 0:00:05]} 20. Qe3 {[%emt 0:00:30]} Bxd4 {[%emt 0:00:05]} 21. Qxd4 {[%emt 0:00:03]} e5 {[%emt 0:06:54]} 22. Qxe5 {[%emt 0:06:32]} Re8 {[%emt 0:00:17]} 23. Qd4 {[%emt 0:00:38]} Rxe2 {[%emt 0:01:19]} 24. Bd2 {[%emt 0:00:22]} Qf6 {[%emt 0:16:29]} 25. Qd3 {[%emt 0:00:15]} Ree8 {[%emt 0:00:59]} 26. Bh3 {[%emt 0:06:02]} Rcd8 {[%emt 0:01:57]} 27. Bc3 {[%emt 0:01:57]} Qd6 {[%emt 0:01:09]} 28. Qd4 {[%emt 0:00:37]} f6 {[%emt 0:00:01]} 29. Rd1 {[%emt 0:01:34]} Ng5 {[%emt 0:00:51]} 30. Bg2 {[%emt 0:00:05]} Kg7 {[%emt 0:01:54]} 31. a4 {[%emt 0:10:21]} Nf7 {[%emt 0:02:15]} 32. a5 {[%emt 0:01:33]} Ne5 {[%emt 0:08:23]} 33. h3 {[%emt 0:06:44]} Nd7 34. Ra1 Re7 {[%emt 0:04:47]} 35. Qc4 {[%emt 0:02:50]} Ne5 {[%emt 0:02:40]} 36. Qb3 {[%emt 0:03:11]} Nd7 {[%emt 0:00:55]} 37. Qb5 {[%emt 0:01:01]} Nc5 {[%emt 0:00:42]} 38. Rc1 {[%emt 0:03:30]} h4 {[%emt 0:03:06]} 39. gxh4 {[%emt 0:02:02]} Qf4 {[%emt 0:00:01]} 40. Ra1 {[%emt 0:00:00]} Rd6 {[%emt 0:00:00]} 41. axb6 {[%emt 0:05:58]} axb6 {[%emt 0:00:22]} 42. Qb4 {[%emt 0:01:54]} Qxb4 {[%emt 0:04:01]} 43. Bxb4 {[%emt 0:00:30]} Re2 {[%emt 0:01:01]} 44. Bc3 {[%emt 0:04:29]} Ne4 {[%emt 0:01:01]} 45. Ra7+ {[%emt 0:00:40]} Kg8 46. Ra8+ {[%emt 0:03:33]} Kf7 {[%emt 0:01:08]} 47. Ra7+ {[%emt 0:08:50]} Ke8 48. Bd4 {[%emt 0:00:25]} Rxd5 {[%emt 0:06:42]} 49. Bxb6 f5 50. b4 {[%emt 0:02:13]} Rb5 {[%emt 0:14:56]} 51. Bc5 {[%emt 0:00:37]} Kd8 {[%emt 0:02:57]} 52. Bxe4 {[%emt 0:00:44]} Rxe4 {[%emt 0:00:28]} 53. Rg7 {[%emt 0:00:03]} Re6 {[%emt 0:02:34]} 54. Kg2 {[%emt 0:00:07]} Kc8 {[%emt 0:01:08]} 55. Kg3 {[%emt 0:01:47]} Rb7 56. Rg8+ {[%emt 0:00:08]} Kd7 {[%emt 0:00:43]} 57. Kf4 {[%emt 0:01:31]} Kc6 {[%emt 0:00:13]} 58. h5 {[%emt 0:00:04]} gxh5 {[%emt 0:01:25]} 59. Kxf5 {[%emt 0:00:02]} Re1 {[%emt 0:00:26]} 60. Rg6+ {[%emt 0:03:05]} Kd5 {[%emt 0:00:01]} 61. Rd6+ {[%emt 0:00:52]} Kc4 {[%emt 0:00:05]} 62. Rd4+ {[%emt 0:00:30]} Kb5 {[%emt 0:00:01]} 63. Rh4 {[%emt 0:00:36]} Rf7+ {[%emt 0:00:48]} 64. Kg6 {[%emt 0:00:01]} Rf3 {[%emt 0:00:18]} 65. Rxh5 {[%emt 0:00:26]} Rg1+ {[%emt 0:00:10]} 66. Kh7 {[%emt 0:00:16]} Rf7+ {[%emt 0:00:26]} 67. Kh8 {[%emt 0:00:02]} Kc4 {[%emt 0:00:21]} 68. h4 {[%emt 0:00:37]} Rd1 {[%emt 0:00:46]} 69. Kg8 {[%emt 0:00:42]} Rf4 {[%emt 0:00:49]} 70. Be3 {[%emt 0:04:39]} Rg4+ {[%emt 0:01:00]} 71. Bg5 {[%emt 0:00:02]} Rf1 {[%emt 0:00:32]} 72. b5 {[%emt 0:00:48]} Rxf2 {[%emt 0:00:52]} 73. b6 {[%emt 0:00:05]} Rf6 {[%emt 0:00:50]} 74. b7 {[%emt 0:00:32]} Rb6 {[%emt 0:00:04]} 75. Rh7 {[%emt 0:00:05]} Kb5 {[%emt 0:00:21]} 76. Rf7 {[%emt 0:01:06]} Ka6 {[%emt 0:00:18]} 77. Kg7 {[%emt 0:00:02]} Rxb7 {[%emt 0:00:09]} 78. Rxb7 {[%emt 0:00:03]} Kxb7 {[%emt 0:00:06]} 79. Kg6 {[%emt 0:00:02]} Rxh4 {[%emt 0:00:07]} 80. Bxh4 {[%emt 0:00:02]} 1/2-1/2